[Event "Titled Tuesday Blitz November 07 Late 2023"]
[White "Carrasco Miranda, Andres"]
[Black "Sepulveda Rojas, Jorge"]
[WhiteFideId "3405990"]
[BlackFideId "3404803"]
[WhiteElo "2417"]
[BlackElo "2491"]
[Result "0-1"]
[Round "10"]
[TimeControl "180+1"]
[Date "2023.11.07"]
[WhiteClock "0:00:00"]
[BlackClock "0:00:33"]
[Board "64"]

1. Nf3 {[%clk 0:02:53]}  g6 {[%clk 0:03:00]} 2. c4 {[%clk 0:02:42]}  Bg7 {[%clk 0:03:01]} 3. g3 {[%clk 0:02:41]}  c6 {[%clk 0:03:02]} 4. Bg2 {[%clk 0:02:41]}  d5 {[%clk 0:03:03]} 5. cxd5 {[%clk 0:02:40]}  cxd5 {[%clk 0:03:04]} 6. O-O {[%clk 0:02:40]}  Nf6 {[%clk 0:03:05]} 7. d3 {[%clk 0:02:41]}  O-O {[%clk 0:03:06]} 8. Nc3 {[%clk 0:02:40]}  Nc6 {[%clk 0:03:07]} 9. Qa4 {[%clk 0:02:40]}  e5 {[%clk 0:03:07]} 10. Qh4 {[%clk 0:02:39]}  d4 {[%clk 0:03:06]} 11. Na4 {[%clk 0:02:26]}  Nd5 {[%clk 0:03:06]} 12. Bg5 {[%clk 0:02:25]}  f6 {[%clk 0:03:06]} 13. Bh6 {[%clk 0:02:25]}  Be6 {[%clk 0:03:05]} 14. Nc5 {[%clk 0:02:24]}  Qe7 {[%clk 0:03:00]} 15. Bxg7 {[%clk 0:02:20]}  Kxg7 {[%clk 0:02:56]} 16. Rfc1 {[%clk 0:02:07]}  Bf7 {[%clk 0:02:42]} 17. a3 {[%clk 0:01:46]}  a5 {[%clk 0:02:29]} 18. Nd2 {[%clk 0:01:35]}  Rac8 {[%clk 0:02:11]} 19. Nde4 {[%clk 0:01:13]}  Rc7 {[%clk 0:02:03]} 20. Nxb7 {[%clk 0:00:54]}  Rxb7 {[%clk 0:02:02]} 21. Rxc6 {[%clk 0:00:54]}  Rxb2 {[%clk 0:01:58]} 22. Rac1 {[%clk 0:00:52]}  Rxe2 {[%clk 0:01:47]} 23. Nxf6 {[%clk 0:00:48]}  Nxf6 {[%clk 0:01:43]} 24. Rc7 {[%clk 0:00:47]}  Qxa3 {[%clk 0:01:34]} 25. Bf1 {[%clk 0:00:36]}  Ra2 {[%clk 0:01:23]} 26. R1c6 {[%clk 0:00:35]}  Nd5 {[%clk 0:01:10]} 27. Rd7 {[%clk 0:00:34]}  Qb2 {[%clk 0:01:02]} 28. g4 {[%clk 0:00:31]}  Ra1 {[%clk 0:00:56]} 29. Rcd6 {[%clk 0:00:00]}  Qc1 {[%clk 0:00:33]} 0-1


[Site "https://www.chess.com"]

[Event "Titled Tuesday Blitz November 07 Late 2023"]
[White "Khater, Sherif"]
[Black "Polaczek, Richard"]
[WhiteFideId "2034280"]
[BlackFideId "200026"]
[WhiteElo "2490"]
[BlackElo "2416"]
[Result "0-1"]
[Round "10"]
[TimeControl "180+1"]
[Date "2023.11.07"]
[WhiteClock "0:00:06"]
[BlackClock "0:00:21"]
[Board "65"]

1. d4 {[%clk 0:03:00]}  Nf6 {[%clk 0:02:58]} 2. Bg5 {[%clk 0:03:00]}  d5 {[%clk 0:02:56]} 3. Bxf6 {[%clk 0:03:00]}  gxf6 {[%clk 0:02:56]} 4. e3 {[%clk 0:03:00]}  c5 {[%clk 0:02:55]} 5. c4 {[%clk 0:02:59]}  cxd4 {[%clk 0:02:51]} 6. Qxd4 {[%clk 0:02:59]}  dxc4 {[%clk 0:02:30]} 7. Qxd8+ {[%clk 0:03:00]}  Kxd8 {[%clk 0:02:29]} 8. Bxc4 {[%clk 0:03:01]}  e6 {[%clk 0:02:29]} 9. Ne2 {[%clk 0:03:01]}  Bb4+ {[%clk 0:02:27]} 10. Nbc3 {[%clk 0:03:02]}  Ke7 {[%clk 0:02:27]} 11. O-O {[%clk 0:03:02]}  Nd7 {[%clk 0:02:27]} 12. Rac1 {[%clk 0:03:03]}  a6 {[%clk 0:02:26]} 13. Rfd1 {[%clk 0:03:00]}  Ne5 {[%clk 0:02:21]} 14. Bb3 {[%clk 0:02:55]}  Bd7 {[%clk 0:02:16]} 15. Nf4 {[%clk 0:02:55]}  Bc6 {[%clk 0:02:10]} 16. Ba4 {[%clk 0:02:35]}  b5 {[%clk 0:02:08]} 17. Bb3 {[%clk 0:02:30]}  Rac8 {[%clk 0:02:07]} 18. Nce2 {[%clk 0:02:25]}  Bb7 {[%clk 0:01:58]} 19. Nd4 {[%clk 0:02:21]}  Rhg8 {[%clk 0:01:49]} 20. Kf1 {[%clk 0:02:07]}  Nc4 {[%clk 0:01:45]} 21. Bxc4 {[%clk 0:02:06]}  bxc4 {[%clk 0:01:45]} 22. f3 {[%clk 0:01:40]}  Bd6 {[%clk 0:01:40]} 23. g3 {[%clk 0:01:32]}  Be5 {[%clk 0:01:34]} 24. Kf2 {[%clk 0:01:30]}  Rgd8 {[%clk 0:01:30]} 25. Rc2 {[%clk 0:01:27]}  Rd7 {[%clk 0:01:17]} 26. Nfe2 {[%clk 0:01:24]}  f5 {[%clk 0:01:13]} 27. Rdc1 {[%clk 0:01:23]}  Rdc7 {[%clk 0:01:13]} 28. b3 {[%clk 0:01:11]}  cxb3 {[%clk 0:01:11]} 29. Rxc7+ {[%clk 0:01:11]}  Rxc7 {[%clk 0:01:11]} 30. Rxc7+ {[%clk 0:01:12]}  Bxc7 {[%clk 0:01:11]} 31. axb3 {[%clk 0:01:10]}  Bb6 {[%clk 0:01:07]} 32. Nc3 {[%clk 0:01:05]}  Bxd4 {[%clk 0:00:58]} 33. exd4 {[%clk 0:01:05]}  Kd6 {[%clk 0:00:58]} 34. Ke3 {[%clk 0:01:04]}  Bc6 {[%clk 0:00:53]} 35. b4 {[%clk 0:01:04]}  Bd7 {[%clk 0:00:51]} 36. f4 {[%clk 0:01:02]}  Bc6 {[%clk 0:00:51]} 37. Kd3 {[%clk 0:01:02]}  f6 {[%clk 0:00:50]} 38. Kc4 {[%clk 0:00:59]}  Bb7 {[%clk 0:00:45]} 39. Na4 {[%clk 0:00:54]}  Bd5+ {[%clk 0:00:42]} 40. Kc3 {[%clk 0:00:52]}  Bc6 {[%clk 0:00:41]} 41. Nc5 {[%clk 0:00:51]}  Bb5 {[%clk 0:00:41]} 42. h3 {[%clk 0:00:41]}  Kd5 {[%clk 0:00:40]} 43. h4 {[%clk 0:00:41]}  h6 {[%clk 0:00:38]} 44. h5 {[%clk 0:00:29]}  Be2 {[%clk 0:00:34]} 45. Kd2 {[%clk 0:00:24]}  Bb5 {[%clk 0:00:33]} 46. Kc3 {[%clk 0:00:24]}  Be2 {[%clk 0:00:33]} 47. Kd2 {[%clk 0:00:24]}  Bb5 {[%clk 0:00:32]} 48. Ke3 {[%clk 0:00:21]}  Bc4 {[%clk 0:00:29]} 49. Nd7 {[%clk 0:00:19]}  Bb5 {[%clk 0:00:25]} 50. Nxf6+ {[%clk 0:00:18]}  Kc4 {[%clk 0:00:26]} 51. Ng8 {[%clk 0:00:15]}  Kxb4 {[%clk 0:00:26]} 52. Nxh6 {[%clk 0:00:16]}  a5 {[%clk 0:00:26]} 53. Ng8 {[%clk 0:00:11]}  a4 {[%clk 0:00:26]} 54. h6 {[%clk 0:00:10]}  a3 {[%clk 0:00:26]} 55. h7 {[%clk 0:00:11]}  a2 {[%clk 0:00:26]} 56. h8=Q {[%clk 0:00:11]}  a1=Q {[%clk 0:00:26]} 57. Kf2 {[%clk 0:00:06]}  Qf1+ {[%clk 0:00:22]} 58. Ke3 {[%clk 0:00:06]}  Qe2# {[%clk 0:00:21]} 0-1


[Site "https://www.chess.com"]

[Event "Titled Tuesday Blitz November 07 Late 2023"]
[White "Inepton_Fermion"]
[Black "Hajiyev, Kanan"]
[BlackFideId "13404148"]
[WhiteElo "2415"]
[BlackElo "2480"]
[Result "0-1"]
[Round "10"]
[TimeControl "180+1"]
[Date "2023.11.07"]
[WhiteClock "0:00:18"]
[BlackClock "0:01:37"]
[Board "66"]

1. Nf3 {[%clk 0:02:53]}  d5 {[%clk 0:03:00]} 2. b3 {[%clk 0:02:53]}  c5 {[%clk 0:03:00]} 3. e3 {[%clk 0:02:53]}  Nc6 {[%clk 0:03:01]} 4. Bb5 {[%clk 0:02:52]}  Nf6 {[%clk 0:03:02]} 5. Bb2 {[%clk 0:02:51]}  Bd7 {[%clk 0:03:02]} 6. O-O {[%clk 0:02:50]}  e6 {[%clk 0:03:03]} 7. d4 {[%clk 0:02:50]}  cxd4 {[%clk 0:03:03]} 8. exd4 {[%clk 0:02:51]}  Bd6 {[%clk 0:03:03]} 9. a3 {[%clk 0:02:50]}  O-O {[%clk 0:03:03]} 10. Nbd2 {[%clk 0:02:48]}  Ne4 {[%clk 0:03:03]} 11. Bd3 {[%clk 0:02:36]}  f5 {[%clk 0:03:03]} 12. Ne5 {[%clk 0:02:36]}  Nxe5 {[%clk 0:02:54]} 13. dxe5 {[%clk 0:02:36]}  Bc5 {[%clk 0:02:55]} 14. b4 {[%clk 0:02:23]}  Bb6 {[%clk 0:02:46]} 15. c4 {[%clk 0:02:22]}  Ba4 {[%clk 0:02:30]} 16. Qxa4 {[%clk 0:02:06]}  Nxd2 {[%clk 0:02:30]} 17. Rfd1 {[%clk 0:02:07]}  Ne4 {[%clk 0:02:22]} 18. Bxe4 {[%clk 0:01:43]}  fxe4 {[%clk 0:02:23]} 19. Bd4 {[%clk 0:01:44]}  Bxd4 {[%clk 0:02:12]} 20. Rxd4 {[%clk 0:01:44]}  Qg5 {[%clk 0:01:58]} 21. cxd5 {[%clk 0:01:41]}  Qxe5 {[%clk 0:01:57]} 22. Rad1 {[%clk 0:01:42]}  e3 {[%clk 0:01:56]} 23. fxe3 {[%clk 0:01:25]}  Qxe3+ {[%clk 0:01:56]} 24. Kh1 {[%clk 0:01:14]}  e5 {[%clk 0:01:57]} 25. Rc4 {[%clk 0:00:59]}  Qe2 {[%clk 0:01:51]} 26. Rcc1 {[%clk 0:00:58]}  Rf2 {[%clk 0:01:50]} 27. Rg1 {[%clk 0:00:57]}  Raf8 {[%clk 0:01:47]} 28. Qd7 {[%clk 0:00:37]}  e4 {[%clk 0:01:39]} 29. Qe6+ {[%clk 0:00:36]}  Kh8 {[%clk 0:01:39]} 30. Rce1 {[%clk 0:00:18]}  Qxe1 {[%clk 0:01:37]} 0-1


[Site "https://www.chess.com"]

[Event "Titled Tuesday Blitz November 07 Late 2023"]
[White "Akhayan, Ruben"]
[Black "Jarocka, Liwia"]
[WhiteFideId "204439"]
[BlackFideId "21807558"]
[WhiteElo "2448"]
[BlackElo "2351"]
[Result "1-0"]
[Round "10"]
[TimeControl "180+1"]
[Date "2023.11.07"]
[WhiteClock "0:00:30"]
[BlackClock "0:00:07"]
[Board "69"]

1. e4 {[%clk 0:03:00]}  d6 {[%clk 0:03:00]} 2. d4 {[%clk 0:02:59]}  Nf6 {[%clk 0:02:59]} 3. Nc3 {[%clk 0:02:56]}  g6 {[%clk 0:02:58]} 4. Be3 {[%clk 0:02:55]}  Bg7 {[%clk 0:02:58]} 5. Qd2 {[%clk 0:02:56]}  O-O {[%clk 0:02:57]} 6. f3 {[%clk 0:02:56]}  e5 {[%clk 0:02:57]} 7. d5 {[%clk 0:02:55]}  a5 {[%clk 0:02:56]} 8. O-O-O {[%clk 0:02:55]}  Na6 {[%clk 0:02:55]} 9. Kb1 {[%clk 0:02:55]}  Nd7 {[%clk 0:02:54]} 10. g4 {[%clk 0:02:54]}  Ndc5 {[%clk 0:02:47]} 11. h4 {[%clk 0:02:54]}  Bd7 {[%clk 0:02:33]} 12. h5 {[%clk 0:02:54]}  Rb8 {[%clk 0:02:22]} 13. Qh2 {[%clk 0:02:51]}  g5 {[%clk 0:02:18]} 14. h6 {[%clk 0:02:46]}  Bf6 {[%clk 0:02:17]} 15. Nh3 {[%clk 0:02:44]}  Kh8 {[%clk 0:02:16]} 16. Qd2 {[%clk 0:02:45]}  Rg8 {[%clk 0:02:15]} 17. Ne2 {[%clk 0:02:30]}  b5 {[%clk 0:02:11]} 18. Ng3 {[%clk 0:02:30]}  Be7 {[%clk 0:02:04]} 19. Nf5 {[%clk 0:02:21]}  f6 {[%clk 0:01:59]} 20. f4 {[%clk 0:02:09]}  gxf4 {[%clk 0:01:55]} 21. Bxc5 {[%clk 0:02:05]}  Nxc5 {[%clk 0:01:53]} 22. Bd3 {[%clk 0:01:54]}  Rxg4 {[%clk 0:01:48]} 23. Rdg1 {[%clk 0:01:52]}  Rxg1+ {[%clk 0:01:46]} 24. Rxg1 {[%clk 0:01:53]}  Bxf5 {[%clk 0:01:46]} 25. exf5 {[%clk 0:01:53]}  Qf8 {[%clk 0:01:46]} 26. Rg7 {[%clk 0:01:52]}  Bd8 {[%clk 0:01:38]} 27. Qe2 {[%clk 0:01:48]}  b4 {[%clk 0:01:37]} 28. Bb5 {[%clk 0:01:43]}  Be7 {[%clk 0:01:34]} 29. Bc6 {[%clk 0:01:40]}  a4 {[%clk 0:01:32]} 30. Qh5 {[%clk 0:01:37]}  Ne4 {[%clk 0:00:48]} 31. Rf7 {[%clk 0:01:29]}  Qg8 {[%clk 0:00:36]} 32. Rxe7 {[%clk 0:01:15]}  Ng3 {[%clk 0:00:29]} 33. Qf3 {[%clk 0:00:57]}  Nxf5 {[%clk 0:00:26]} 34. Rxc7 {[%clk 0:00:46]}  Nd4 {[%clk 0:00:25]} 35. Qd3 {[%clk 0:00:39]}  b3 {[%clk 0:00:15]} 36. axb3 {[%clk 0:00:32]}  axb3 {[%clk 0:00:15]} 37. c3 {[%clk 0:00:31]}  f3 {[%clk 0:00:07]} 38. Rg7 {[%clk 0:00:30]} 1-0


[Site "https://www.chess.com"]

[Event "Titled Tuesday Blitz November 07 Late 2023"]
[White "Kovalevsky, Stanislav"]
[Black "Mesa Cruz, Juan Carlos"]
[WhiteFideId "13508598"]
[BlackFideId "6423400"]
[WhiteElo "2447"]
[BlackElo "2314"]
[Result "1-0"]
[Round "10"]
[TimeControl "180+1"]
[Date "2023.11.07"]
[WhiteClock "0:01:18"]
[BlackClock "0:00:38"]
[Board "70"]

1. c4 {[%clk 0:02:54]}  Nf6 {[%clk 0:02:54]} 2. Nc3 {[%clk 0:02:53]}  e5 {[%clk 0:02:26]} 3. g3 {[%clk 0:02:53]}  d5 {[%clk 0:02:25]} 4. cxd5 {[%clk 0:02:54]}  Nxd5 {[%clk 0:02:26]} 5. Bg2 {[%clk 0:02:54]}  Nb6 {[%clk 0:02:26]} 6. e3 {[%clk 0:02:54]}  Nc6 {[%clk 0:02:26]} 7. Nge2 {[%clk 0:02:54]}  Be7 {[%clk 0:02:26]} 8. f4 {[%clk 0:02:54]}  O-O {[%clk 0:02:26]} 9. O-O {[%clk 0:02:54]}  f6 {[%clk 0:02:19]} 10. f5 {[%clk 0:02:51]}  Bd7 {[%clk 0:01:54]} 11. d4 {[%clk 0:02:46]}  exd4 {[%clk 0:01:48]} 12. Nxd4 {[%clk 0:02:34]}  Nxd4 {[%clk 0:01:45]} 13. exd4 {[%clk 0:02:35]}  c6 {[%clk 0:01:37]} 14. Bf4 {[%clk 0:02:26]}  Be8 {[%clk 0:01:36]} 15. d5 {[%clk 0:02:22]}  cxd5 {[%clk 0:01:24]} 16. Nxd5 {[%clk 0:02:23]}  Nxd5 {[%clk 0:01:19]} 17. Qxd5+ {[%clk 0:02:24]}  Bf7 {[%clk 0:01:12]} 18. Qxb7 {[%clk 0:02:23]}  Rc8 {[%clk 0:01:11]} 19. Rad1 {[%clk 0:02:19]}  Bc5+ {[%clk 0:01:10]} 20. Kh1 {[%clk 0:02:17]}  Qa5 {[%clk 0:01:10]} 21. a3 {[%clk 0:02:13]}  Bb6 {[%clk 0:01:08]} 22. Rd7 {[%clk 0:01:59]}  Qb5 {[%clk 0:00:51]} 23. Rxf7 {[%clk 0:01:56]}  Rxf7 {[%clk 0:00:46]} 24. Qxc8+ {[%clk 0:01:55]}  Rf8 {[%clk 0:00:46]} 25. Qc6 {[%clk 0:01:43]}  Qd3 {[%clk 0:00:44]} 26. Qd5+ {[%clk 0:01:41]}  Qxd5 {[%clk 0:00:44]} 27. Bxd5+ {[%clk 0:01:42]}  Kh8 {[%clk 0:00:45]} 28. Be6 {[%clk 0:01:35]}  Rd8 {[%clk 0:00:37]} 29. Rc1 {[%clk 0:01:34]}  g5 {[%clk 0:00:36]} 30. fxg6 {[%clk 0:01:25]}  hxg6 {[%clk 0:00:35]} 31. Rc8 {[%clk 0:01:24]}  Rxc8 {[%clk 0:00:33]} 32. Bxc8 {[%clk 0:01:25]}  Kg7 {[%clk 0:00:33]} 33. Kg2 {[%clk 0:01:24]}  g5 {[%clk 0:00:33]} 34. Bd2 {[%clk 0:01:21]}  Bd4 {[%clk 0:00:34]} 35. b3 {[%clk 0:01:21]}  Be5 {[%clk 0:00:35]} 36. Be3 {[%clk 0:01:19]}  Bd6 {[%clk 0:00:36]} 37. a4 {[%clk 0:01:19]}  a5 {[%clk 0:00:36]} 38. Bd2 {[%clk 0:01:17]}  Bb4 {[%clk 0:00:37]} 39. Bxb4 {[%clk 0:01:17]}  axb4 {[%clk 0:00:38]} 40. a5 {[%clk 0:01:17]}  Kf7 {[%clk 0:00:39]} 41. a6 {[%clk 0:01:18]}  Ke7 {[%clk 0:00:40]} 42. a7 {[%clk 0:01:18]}  Kd6 {[%clk 0:00:40]} 43. a8=Q {[%clk 0:01:19]}  Kc5 {[%clk 0:00:38]} 44. Qa7+ {[%clk 0:01:18]} 1-0


[Site "https://www.chess.com"]

[Event "Titled Tuesday Blitz November 07 Late 2023"]
[White "Mazurkiewicz, Michal"]
[Black "Aung Thant Zin"]
[WhiteFideId "1124943"]
[BlackFideId "13000063"]
[WhiteElo "2436"]
[BlackElo "2055"]
[Result "1-0"]
[Round "10"]
[TimeControl "180+1"]
[Date "2023.11.07"]
[WhiteClock "0:00:29"]
[BlackClock "0:00:00"]
[Board "72"]

1. e4 {[%clk 0:03:00]}  c5 {[%clk 0:02:58]} 2. Nf3 {[%clk 0:03:00]}  Nc6 {[%clk 0:02:58]} 3. g3 {[%clk 0:03:00]}  Nf6 {[%clk 0:02:55]} 4. d3 {[%clk 0:02:59]}  d5 {[%clk 0:02:55]} 5. Nbd2 {[%clk 0:02:59]}  Bg4 {[%clk 0:02:53]} 6. h3 {[%clk 0:02:46]}  Bxf3 {[%clk 0:02:40]} 7. Qxf3 {[%clk 0:02:47]}  Nd4 {[%clk 0:02:38]} 8. Qd1 {[%clk 0:02:47]}  dxe4 {[%clk 0:02:38]} 9. dxe4 {[%clk 0:02:43]}  e5 {[%clk 0:02:36]} 10. c3 {[%clk 0:02:37]}  Nc6 {[%clk 0:02:35]} 11. Bc4 {[%clk 0:02:32]}  Be7 {[%clk 0:02:33]} 12. Qb3 {[%clk 0:02:31]}  O-O {[%clk 0:02:31]} 13. Qxb7 {[%clk 0:02:28]}  Na5 {[%clk 0:02:28]} 14. Qa6 {[%clk 0:02:29]}  Nxc4 {[%clk 0:02:08]} 15. Qxc4 {[%clk 0:02:29]}  Qd7 {[%clk 0:02:02]} 16. h4 {[%clk 0:02:17]}  Kh8 {[%clk 0:01:59]} 17. Nf3 {[%clk 0:02:11]}  Bd6 {[%clk 0:01:49]} 18. O-O {[%clk 0:02:07]}  Qg4 {[%clk 0:01:43]} 19. Ng5 {[%clk 0:01:50]}  Qh5 {[%clk 0:01:13]} 20. f3 {[%clk 0:01:33]}  h6 {[%clk 0:01:12]} 21. Nh3 {[%clk 0:01:34]}  Qg6 {[%clk 0:01:05]} 22. g4 {[%clk 0:01:27]}  Nh7 {[%clk 0:00:35]} 23. h5 {[%clk 0:01:18]}  Qf6 {[%clk 0:00:33]} 24. Be3 {[%clk 0:01:18]}  Qh4 {[%clk 0:00:32]} 25. Kg2 {[%clk 0:01:17]}  f5 {[%clk 0:00:20]} 26. Bf2 {[%clk 0:01:00]}  Qe7 {[%clk 0:00:18]} 27. exf5 {[%clk 0:00:58]}  Rae8 {[%clk 0:00:16]} 28. Rfe1 {[%clk 0:00:54]}  Bb8 {[%clk 0:00:15]} 29. Bxc5 {[%clk 0:00:48]}  Qc7 {[%clk 0:00:15]} 30. Re4 {[%clk 0:00:35]}  Nf6 {[%clk 0:00:12]} 31. Bxf8 {[%clk 0:00:34]}  Nxe4 {[%clk 0:00:03]} 32. Qxc7 {[%clk 0:00:30]}  Bxc7 {[%clk 0:00:03]} 33. Bxg7+ {[%clk 0:00:30]}  Kxg7 {[%clk 0:00:01]} 34. fxe4 {[%clk 0:00:31]}  Rd8 {[%clk 0:00:01]} 35. Nf2 {[%clk 0:00:29]}  Rd2 {[%clk 0:00:00]} 36. Rd1 {[%clk 0:00:29]} 1-0


[Site "https://www.chess.com"]

[Event "Titled Tuesday Blitz November 07 Late 2023"]
[White "elmusmolamas"]
[Black "TheAlienParty"]
[WhiteElo "2465"]
[BlackElo "2343"]
[Result "1-0"]
[Round "10"]
[TimeControl "180+1"]
[Date "2023.11.07"]
[WhiteClock "0:00:05"]
[BlackClock "0:00:00"]
[Board "74"]

1. e4 {[%clk 0:03:00]}  e5 {[%clk 0:02:53]} 2. Nf3 {[%clk 0:02:59]}  Nc6 {[%clk 0:02:53]} 3. Bc4 {[%clk 0:03:00]}  Bc5 {[%clk 0:02:51]} 4. c3 {[%clk 0:03:00]}  Nf6 {[%clk 0:02:51]} 5. d4 {[%clk 0:03:01]}  exd4 {[%clk 0:02:49]} 6. e5 {[%clk 0:03:02]}  d5 {[%clk 0:02:49]} 7. Be2 {[%clk 0:03:03]}  Ne4 {[%clk 0:02:43]} 8. cxd4 {[%clk 0:03:03]}  Bb4+ {[%clk 0:02:43]} 9. Nbd2 {[%clk 0:03:02]}  Bg4 {[%clk 0:02:40]} 10. O-O {[%clk 0:03:02]}  O-O {[%clk 0:02:37]} 11. h3 {[%clk 0:02:55]}  Bh5 {[%clk 0:02:32]} 12. Nb3 {[%clk 0:02:49]}  f6 {[%clk 0:02:29]} 13. exf6 {[%clk 0:02:49]}  Qxf6 {[%clk 0:02:27]} 14. Be3 {[%clk 0:02:48]}  Bd6 {[%clk 0:02:25]} 15. Nc5 {[%clk 0:02:44]}  b6 {[%clk 0:02:21]} 16. Nxe4 {[%clk 0:02:39]}  dxe4 {[%clk 0:02:20]} 17. Nd2 {[%clk 0:02:40]}  Bg6 {[%clk 0:02:16]} 18. Bc4+ {[%clk 0:02:31]}  Kh8 {[%clk 0:02:15]} 19. Bd5 {[%clk 0:02:31]}  Nxd4 {[%clk 0:02:02]} 20. Bxa8 {[%clk 0:02:31]}  Rxa8 {[%clk 0:02:00]} 21. Nxe4 {[%clk 0:02:23]}  Bxe4 {[%clk 0:01:54]} 22. Qxd4 {[%clk 0:02:24]}  Qg6 {[%clk 0:01:47]} 23. f3 {[%clk 0:02:18]}  Bb7 {[%clk 0:01:43]} 24. Qg4 {[%clk 0:02:06]}  Qd3 {[%clk 0:01:29]} 25. Bd4 {[%clk 0:02:00]}  Rg8 {[%clk 0:01:23]} 26. Rad1 {[%clk 0:01:57]}  Qb5 {[%clk 0:01:19]} 27. b4 {[%clk 0:01:48]}  Bc8 {[%clk 0:01:17]} 28. Qe4 {[%clk 0:01:34]}  Bf5 {[%clk 0:01:16]} 29. Qe3 {[%clk 0:01:24]}  Qxb4 {[%clk 0:01:15]} 30. Rfe1 {[%clk 0:01:20]}  Qa5 {[%clk 0:01:00]} 31. Qh6 {[%clk 0:01:04]}  Qa4 {[%clk 0:00:45]} 32. Qg5 {[%clk 0:00:51]}  Bc2 {[%clk 0:00:39]} 33. Rd2 {[%clk 0:00:47]}  Bg6 {[%clk 0:00:38]} 34. Qg4 {[%clk 0:00:36]}  Qa5 {[%clk 0:00:35]} 35. Red1 {[%clk 0:00:28]}  Qf5 {[%clk 0:00:25]} 36. Ba1 {[%clk 0:00:17]}  Qxg4 {[%clk 0:00:24]} 37. hxg4 {[%clk 0:00:18]}  h6 {[%clk 0:00:23]} 38. Re2 {[%clk 0:00:17]}  Kh7 {[%clk 0:00:23]} 39. Rde1 {[%clk 0:00:13]}  Bc5+ {[%clk 0:00:20]} 40. Kh2 {[%clk 0:00:12]}  Rd8 {[%clk 0:00:21]} 41. Be5 {[%clk 0:00:09]}  Rd7 {[%clk 0:00:20]} 42. Bg3 {[%clk 0:00:09]}  Bb4 {[%clk 0:00:20]} 43. Rc1 {[%clk 0:00:08]}  c5 {[%clk 0:00:19]} 44. Re6 {[%clk 0:00:08]}  Bf7 {[%clk 0:00:18]} 45. Rc6 {[%clk 0:00:07]}  Bd5 {[%clk 0:00:18]} 46. Rc8 {[%clk 0:00:07]}  c4 {[%clk 0:00:18]} 47. Rd1 {[%clk 0:00:04]}  b5 {[%clk 0:00:16]} 48. Be1 {[%clk 0:00:05]}  Bxe1 {[%clk 0:00:14]} 49. Rxe1 {[%clk 0:00:06]}  Bf7 {[%clk 0:00:14]} 50. Re5 {[%clk 0:00:05]}  b4 {[%clk 0:00:13]} 51. Rb5 {[%clk 0:00:04]}  c3 {[%clk 0:00:04]} 52. Rxb4 {[%clk 0:00:03]}  Bxa2 {[%clk 0:00:02]} 53. Rxc3 {[%clk 0:00:03]}  Bf7 {[%clk 0:00:02]} 54. Ra3 {[%clk 0:00:04]}  a6 {[%clk 0:00:00]} 55. Rf4 {[%clk 0:00:05]} 1-0


[Site "https://www.chess.com"]

[Event "Titled Tuesday Blitz November 07 Late 2023"]
[White "Bueno, Alfeu Junior Varela"]
[Black "GatoRojo150"]
[WhiteFideId "2108879"]
[WhiteElo "2322"]
[BlackElo "2570"]
[Result "0-1"]
[Round "10"]
[TimeControl "180+1"]
[Date "2023.11.07"]
[WhiteClock "0:00:01"]
[BlackClock "0:01:06"]
[Board "79"]

1. e4 {[%clk 0:02:55]}  e5 {[%clk 0:03:00]} 2. Nc3 {[%clk 0:02:55]}  Nf6 {[%clk 0:02:59]} 3. f4 {[%clk 0:02:55]}  d5 {[%clk 0:02:59]} 4. fxe5 {[%clk 0:02:55]}  Nxe4 {[%clk 0:02:59]} 5. Qf3 {[%clk 0:02:56]}  Nc6 {[%clk 0:02:58]} 6. Bb5 {[%clk 0:02:55]}  Nxc3 {[%clk 0:02:57]} 7. dxc3 {[%clk 0:02:56]}  Qh4+ {[%clk 0:02:58]} 8. g3 {[%clk 0:02:56]}  Qe4+ {[%clk 0:02:58]} 9. Qxe4 {[%clk 0:02:57]}  dxe4 {[%clk 0:02:59]} 10. Bxc6+ {[%clk 0:02:57]}  bxc6 {[%clk 0:03:00]} 11. Be3 {[%clk 0:02:58]}  h5 {[%clk 0:02:56]} 12. h3 {[%clk 0:02:57]}  a5 {[%clk 0:02:32]} 13. O-O-O {[%clk 0:02:55]}  a4 {[%clk 0:02:31]} 14. Ne2 {[%clk 0:02:54]}  Ra5 {[%clk 0:02:31]} 15. Bf4 {[%clk 0:02:32]}  Be7 {[%clk 0:02:21]} 16. Nd4 {[%clk 0:02:06]}  Bd7 {[%clk 0:02:15]} 17. e6 {[%clk 0:02:00]}  fxe6 {[%clk 0:02:14]} 18. Bxc7 {[%clk 0:02:00]}  Rd5 {[%clk 0:02:04]} 19. c4 {[%clk 0:01:22]}  Rg5 {[%clk 0:01:53]} 20. Bf4 {[%clk 0:01:10]}  Ra5 {[%clk 0:01:50]} 21. Bc7 {[%clk 0:00:57]}  Rg5 {[%clk 0:01:49]} 22. Bf4 {[%clk 0:00:57]}  e5 {[%clk 0:01:45]} 23. Bxg5 {[%clk 0:00:51]}  Bxg5+ {[%clk 0:01:46]} 24. Kb1 {[%clk 0:00:51]}  exd4 {[%clk 0:01:46]} 25. Rxd4 {[%clk 0:00:52]}  e3 {[%clk 0:01:42]} 26. c5 {[%clk 0:00:37]}  Bf5 {[%clk 0:01:12]} 27. Rf1 {[%clk 0:00:25]}  O-O {[%clk 0:01:11]} 28. Re1 {[%clk 0:00:02]}  Bxh3 {[%clk 0:01:06]} 29. Rxa4 {[%clk 0:00:01]} 0-1


[Site "https://www.chess.com"]